[Event "Early-Titled-Tuesday-Blitz-February-27-2024"]
[Site "Chess.com"]
[Date "2024.02.27"]
[Round "2"]
[White "Christ_is_alive"]
[Black "ExchangeAB"]
[Result "0-1"]
[WhiteElo "2280"]
[BlackElo "2524"]
[TimeControl "180+1"]
[EndTime "8:16:29 PST"]
[Termination "ExchangeAB won by checkmate"]

1. e4 {[%clk 0:03:00.9]} 1... c6 {[%clk 0:02:59.6]} 2. d4 {[%clk 0:03:00]} 2...
d5 {[%clk 0:03:00.5]} 3. Nd2 {[%clk 0:03:00.4]} 3... dxe4 {[%clk 0:03:00.2]} 4.
Nxe4 {[%clk 0:03:01.3]} 4... Nf6 {[%clk 0:02:59.9]} 5. Nxf6+ {[%clk 0:03:01.4]}
5... exf6 {[%clk 0:02:59.9]} 6. c3 {[%clk 0:03:01.7]} 6... Bd6 {[%clk
0:02:58.5]} 7. Bd3 {[%clk 0:03:02.3]} 7... O-O {[%clk 0:02:58.7]} 8. Qc2 {[%clk
0:03:02.7]} 8... h6 {[%clk 0:02:59.2]} 9. Ne2 {[%clk 0:03:02.7]} 9... Re8 {[%clk
0:02:59]} 10. Be3 {[%clk 0:03:03.1]} 10... Nd7 {[%clk 0:02:58.4]} 11. O-O-O
{[%clk 0:03:02.4]} 11... Nf8 {[%clk 0:02:58.3]} 12. g4 {[%clk 0:02:52.9]} 12...
Qc7 {[%clk 0:02:57.5]} 13. Kb1 {[%clk 0:02:34.8]} 13... Ne6 {[%clk 0:02:49]} 14.
h4 {[%clk 0:02:21.8]} 14... Nf4 {[%clk 0:02:48.5]} 15. g5 {[%clk 0:02:12]} 15...
Nxd3 {[%clk 0:02:26.8]} 16. Qxd3 {[%clk 0:02:11.1]} 16... g6 {[%clk 0:02:25.6]}
17. Qd2 {[%clk 0:01:42.2]} 17... Bf5+ {[%clk 0:02:25.1]} 18. Ka1 {[%clk
0:01:41.1]} 18... fxg5 {[%clk 0:02:24.7]} 19. hxg5 {[%clk 0:01:37.6]} 19... h5
{[%clk 0:02:24.7]} 20. Nf4 {[%clk 0:01:22.4]} 20... Re4 {[%clk 0:02:16.7]} 21.
Nxh5 {[%clk 0:01:10.6]} 21... gxh5 {[%clk 0:02:08.9]} 22. Rxh5 {[%clk
0:01:11.5]} 22... Bg6 {[%clk 0:02:06.3]} 23. Rh6 {[%clk 0:00:26.8]} 23... Bf8
{[%clk 0:01:55.7]} 24. Rh3 {[%clk 0:00:18.5]} 24... Bg7 {[%clk 0:01:55]} 25.
Rdh1 {[%clk 0:00:17.7]} 25... Rae8 {[%clk 0:01:54]} 26. a3 {[%clk 0:00:15.4]}
26... b5 {[%clk 0:01:53]} 27. Qe2 {[%clk 0:00:13.5]} 27... a5 {[%clk 0:01:52.3]}
28. Qf3 {[%clk 0:00:08.3]} 28... b4 {[%clk 0:01:50.2]} 29. R1h2 {[%clk
0:00:08.5]} 29... bxc3 {[%clk 0:01:48.8]} 30. Qh1 {[%clk 0:00:07.8]} 30... cxb2+
{[%clk 0:01:46.5]} 31. Kxb2 {[%clk 0:00:08.1]} 31... Rb8+ {[%clk 0:01:31.8]} 32.
Ka2 {[%clk 0:00:07.9]} 32... Kf8 {[%clk 0:01:25.7]} 33. Rh8+ {[%clk 0:00:06.6]}
33... Bxh8 {[%clk 0:01:22]} 34. Rxh8+ {[%clk 0:00:07.5]} 34... Ke7 {[%clk
0:01:22.6]} 35. Rxb8 {[%clk 0:00:07.5]} 35... Qxb8 {[%clk 0:01:22]} 36. Qf3
{[%clk 0:00:08.4]} 36... Qd6 {[%clk 0:01:17.2]} 37. Bd2 {[%clk 0:00:03.6]} 37...
Qe6+ {[%clk 0:01:16]} 38. Ka1 {[%clk 0:00:02]} 38... Re1+ {[%clk 0:01:08.3]} 39.
Bxe1 {[%clk 0:00:02.2]} 39... Qxe1+ {[%clk 0:01:09.2]} 40. Kb2 {[%clk
0:00:02.7]} 40... Qb1+ {[%clk 0:01:09.8]} 41. Kc3 {[%clk 0:00:03]} 41... Qc2#
{[%clk 0:01:10.2]} 0-1

[Event "Early-Titled-Tuesday-Blitz-February-27-2024"]
[Site "Chess.com"]
[Date "2024.02.27"]
[Round "2"]
[White "quvnoq_muxlis"]
[Black "ChessboArt"]
[Result "1-0"]
[WhiteElo "2681"]
[BlackElo "2263"]
[TimeControl "180+1"]
[EndTime "8:16:30 PST"]
[Termination "quvnoq_muxlis won by checkmate"]

1. e4 {[%clk 0:03:00.9]} 1... c6 {[%clk 0:02:59.5]} 2. d4 {[%clk 0:03:00]} 2...
d5 {[%clk 0:03:00.4]} 3. e5 {[%clk 0:03:00.7]} 3... g6 {[%clk 0:03:00.4]} 4. Be2
{[%clk 0:02:59]} 4... Bg7 {[%clk 0:03:00.5]} 5. Nf3 {[%clk 0:02:59.7]} 5... Nh6
{[%clk 0:03:00.7]} 6. O-O {[%clk 0:02:59]} 6... f6 {[%clk 0:03:01]} 7. exf6
{[%clk 0:02:59.8]} 7... exf6 {[%clk 0:03:01]} 8. h3 {[%clk 0:02:59.1]} 8... O-O
{[%clk 0:03:01.2]} 9. c4 {[%clk 0:02:56.8]} 9... Be6 {[%clk 0:03:00.8]} 10. b3
{[%clk 0:02:41.1]} 10... Re8 {[%clk 0:02:59.8]} 11. Re1 {[%clk 0:02:39.7]} 11...
Nd7 {[%clk 0:02:53]} 12. Nc3 {[%clk 0:02:38.7]} 12... Nb6 {[%clk 0:02:52.5]} 13.
c5 {[%clk 0:02:36.4]} 13... Nd7 {[%clk 0:02:50]} 14. Bf4 {[%clk 0:02:37]} 14...
Nf7 {[%clk 0:02:48.5]} 15. Bh2 {[%clk 0:02:34.8]} 15... h6 {[%clk 0:02:42.2]}
16. b4 {[%clk 0:02:33.4]} 16... a6 {[%clk 0:02:42.1]} 17. a4 {[%clk 0:02:33]}
17... f5 {[%clk 0:02:40.6]} 18. b5 {[%clk 0:02:21]} 18... Nf6 {[%clk 0:02:39.3]}
19. bxc6 {[%clk 0:02:13.5]} 19... bxc6 {[%clk 0:02:39.1]} 20. Rb1 {[%clk
0:02:14.2]} 20... Ne4 {[%clk 0:02:37.8]} 21. Qd3 {[%clk 0:02:11.3]} 21... Qa5
{[%clk 0:02:07.6]} 22. Rec1 {[%clk 0:02:09.9]} 22... Nfg5 {[%clk 0:01:47.8]} 23.
Ne5 {[%clk 0:02:01.6]} 23... Nxc3 {[%clk 0:01:44.3]} 24. Qxc3 {[%clk 0:01:54.9]}
24... Qxc3 {[%clk 0:01:31.8]} 25. Rxc3 {[%clk 0:01:55.8]} 25... Ne4 {[%clk
0:01:32]} 26. Rc2 {[%clk 0:01:54]} 26... Rab8 {[%clk 0:00:29.9]} 27. Rcb2 {[%clk
0:01:52.6]} 27... Rxb2 {[%clk 0:00:28.8]} 28. Rxb2 {[%clk 0:01:53.5]} 28... Bxe5
{[%clk 0:00:26.7]} 29. Bxe5 {[%clk 0:01:51.7]} 29... Nc3 {[%clk 0:00:20.5]} 30.
Bxa6 {[%clk 0:01:49.5]} 30... Nxa4 {[%clk 0:00:20]} 31. Rb7 {[%clk 0:01:48]}
31... Nc3 {[%clk 0:00:16.1]} 32. Rg7+ {[%clk 0:01:44.4]} 32... Kf8 {[%clk
0:00:15.9]} 33. Rxg6 {[%clk 0:01:45.3]} 33... Bf7 {[%clk 0:00:15.3]} 34. Rxc6
{[%clk 0:01:45.3]} 34... f4 {[%clk 0:00:15]} 35. Bxf4 {[%clk 0:01:38.8]} 35...
Re1+ {[%clk 0:00:12.2]} 36. Kh2 {[%clk 0:01:39.3]} 36... Ra1 {[%clk 0:00:12.2]}
37. Bxh6+ {[%clk 0:01:34.7]} 37... Ke7 {[%clk 0:00:11.8]} 38. Bc8 {[%clk
0:01:34.6]} 38... Ne4 {[%clk 0:00:11.3]} 39. f3 {[%clk 0:01:34.2]} 39... Nf2
{[%clk 0:00:07.2]} 40. Bg5+ {[%clk 0:01:34.4]} 40... Kf8 {[%clk 0:00:05.8]} 41.
Bf5 {[%clk 0:01:35.3]} 41... Nd1 {[%clk 0:00:03]} 42. Rc7 {[%clk 0:01:29.5]}
42... Ra2 {[%clk 0:00:02.5]} 43. Kg3 {[%clk 0:01:28.2]} 43... Nc3 {[%clk
0:00:02.1]} 44. Bf6 {[%clk 0:01:26.7]} 44... Ne2+ {[%clk 0:00:02.2]} 45. Kg4
{[%clk 0:01:27.3]} 45... Be8 {[%clk 0:00:02.6]} 46. Be6 {[%clk 0:01:24]} 46...
Nc3 {[%clk 0:00:02.1]} 47. Bg7# {[%clk 0:01:23.9]} 1-0

[Event "Early-Titled-Tuesday-Blitz-February-27-2024"]
[Site "Chess.com"]
[Date "2024.02.27"]
[Round "2"]
[White "Juicy_Fork"]
[Black "JaloliddinIlkhomi"]
[Result "0-1"]
[WhiteElo "2522"]
[BlackElo "2756"]
[TimeControl "180+1"]
[EndTime "8:16:31 PST"]
[Termination "JaloliddinIlkhomi won on time"]

1. e4 {[%clk 0:03:00.9]} 1... e6 {[%clk 0:03:00]} 2. d4 {[%clk 0:03:00.8]} 2...
d5 {[%clk 0:03:00.7]} 3. Nc3 {[%clk 0:03:00.8]} 3... Bb4 {[%clk 0:03:00.9]} 4.
e5 {[%clk 0:03:00.2]} 4... c5 {[%clk 0:03:01.4]} 5. a3 {[%clk 0:03:00.5]} 5...
Bxc3+ {[%clk 0:03:02]} 6. bxc3 {[%clk 0:03:01.4]} 6... Qa5 {[%clk 0:03:01.5]} 7.
Bd2 {[%clk 0:02:57.8]} 7... Qa4 {[%clk 0:03:02]} 8. Qg4 {[%clk 0:02:53.2]} 8...
g6 {[%clk 0:03:02]} 9. Nf3 {[%clk 0:02:48]} 9... Nc6 {[%clk 0:02:59.3]} 10. Bd3
{[%clk 0:02:40.1]} 10... c4 {[%clk 0:02:58.7]} 11. Be2 {[%clk 0:02:37.6]} 11...
Bd7 {[%clk 0:02:43.9]} 12. Ra2 {[%clk 0:02:31.5]} 12... h6 {[%clk 0:02:36.1]}
13. O-O {[%clk 0:02:30.3]} 13... Nge7 {[%clk 0:02:35.2]} 14. Rb1 {[%clk
0:02:10]} 14... O-O-O {[%clk 0:02:35.2]} 15. Qf4 {[%clk 0:02:04]} 15... Nf5
{[%clk 0:02:35]} 16. h4 {[%clk 0:01:54.6]} 16... b6 {[%clk 0:02:25.2]} 17. Nh2
{[%clk 0:01:25.6]} 17... g5 {[%clk 0:01:54.8]} 18. hxg5 {[%clk 0:01:03.9]} 18...
hxg5 {[%clk 0:01:55.7]} 19. Qxg5 {[%clk 0:00:57.9]} 19... Rdg8 {[%clk
0:01:54.4]} 20. Qf4 {[%clk 0:00:48.6]} 20... Rh4 {[%clk 0:01:35.7]} 21. g4
{[%clk 0:00:19.8]} 21... Rgh8 {[%clk 0:01:29.6]} 22. Nf1 {[%clk 0:00:14.9]}
22... Rh1+ {[%clk 0:01:04.3]} 23. Kg2 {[%clk 0:00:14.9]} 23... Nh4+ {[%clk
0:01:04.7]} 24. Kxh1 {[%clk 0:00:13.2]} 24... Ng6+ {[%clk 0:01:05.3]} 25. Kg2
{[%clk 0:00:12.3]} 25... Nxf4+ {[%clk 0:01:04.7]} 26. Bxf4 {[%clk 0:00:13.2]}
26... Qa5 {[%clk 0:01:04.6]} 27. Bd2 {[%clk 0:00:10.1]} 27... Ne7 {[%clk
0:01:01]} 28. Ng3 {[%clk 0:00:08.9]} 28... Nc6 {[%clk 0:01:01]} 29. Nf1 {[%clk
0:00:04.3]} 29... Rg8 {[%clk 0:01:01.5]} 30. Bf3 {[%clk 0:00:03.4]} 30... Ne7
{[%clk 0:01:01.1]} 31. Rd1 {[%clk 0:00:03.6]} 31... Ba4 {[%clk 0:01:01.4]} 32.
Ng3 {[%clk 0:00:03.4]} 32... Qb5 {[%clk 0:01:01.8]} 33. Rh1 {[%clk 0:00:01.6]}
33... Ng6 {[%clk 0:01:02]} 34. Rh7 {[%clk 0:00:01.6]} 34... Qb1 {[%clk
0:00:59.6]} 0-1

[Event "Early-Titled-Tuesday-Blitz-February-27-2024"]
[Site "Chess.com"]
[Date "2024.02.27"]
[Round "2"]
[White "ATM622"]
[Black "publicaccountcze"]
[Result "1-0"]
[WhiteElo "2513"]
[BlackElo "2246"]
[TimeControl "180+1"]
[EndTime "8:16:31 PST"]
[Termination "ATM622 won by resignation"]

1. d4 {[%clk 0:03:00.9]} 1... Nf6 {[%clk 0:02:53.9]} 2. c4 {[%clk 0:03:01]} 2...
g6 {[%clk 0:02:53.4]} 3. g3 {[%clk 0:03:00.2]} 3... d5 {[%clk 0:02:51.5]} 4. Bg2
{[%clk 0:03:00.4]} 4... c6 {[%clk 0:02:50.4]} 5. Nf3 {[%clk 0:03:00.1]} 5... Bg7
{[%clk 0:02:50.2]} 6. O-O {[%clk 0:02:59.6]} 6... O-O {[%clk 0:02:49.7]} 7. Nbd2
{[%clk 0:03:00]} 7... Nbd7 {[%clk 0:02:42.4]} 8. b3 {[%clk 0:02:58.4]} 8... b6
{[%clk 0:02:41.2]} 9. Bb2 {[%clk 0:02:58.3]} 9... Bb7 {[%clk 0:02:41.1]} 10. Qc2
{[%clk 0:02:57.8]} 10... Rc8 {[%clk 0:02:35.7]} 11. e4 {[%clk 0:02:57.4]} 11...
dxe4 {[%clk 0:02:34.4]} 12. Nxe4 {[%clk 0:02:58.3]} 12... Nxe4 {[%clk
0:02:34.2]} 13. Qxe4 {[%clk 0:02:58.2]} 13... Ba8 {[%clk 0:02:13.4]} 14. Rfd1
{[%clk 0:02:55]} 14... Re8 {[%clk 0:02:10.5]} 15. Rac1 {[%clk 0:02:52.4]} 15...
c5 {[%clk 0:02:10.3]} 16. Qb1 {[%clk 0:02:50.8]} 16... Qc7 {[%clk 0:02:02.8]}
17. d5 {[%clk 0:02:49.5]} 17... Nf6 {[%clk 0:02:00.3]} 18. Qa1 {[%clk 0:02:47]}
18... Rcd8 {[%clk 0:01:46.7]} 19. Be5 {[%clk 0:02:43]} 19... Qc8 {[%clk
0:01:43]} 20. d6 {[%clk 0:02:40]} 20... Nh5 {[%clk 0:01:38.4]} 21. Bxg7 {[%clk
0:02:08.8]} 21... Nxg7 {[%clk 0:01:37.5]} 22. dxe7 {[%clk 0:02:04.9]} 22... Rxe7
{[%clk 0:01:33.5]} 23. Qf6 {[%clk 0:02:01.4]} 23... Red7 {[%clk 0:01:09.6]} 24.
Re1 {[%clk 0:01:54.9]} 24... Ne6 {[%clk 0:01:06.9]} 25. Ne5 {[%clk 0:01:44.6]}
25... Rc7 {[%clk 0:00:58.7]} 26. Bxa8 {[%clk 0:01:39.8]} 26... Qxa8 {[%clk
0:00:58.5]} 27. Ng4 {[%clk 0:01:30.7]} 27... Ng7 {[%clk 0:00:36.7]} 28. Rcd1
{[%clk 0:01:12.3]} 28... Rcd7 {[%clk 0:00:30.1]} 29. Rxd7 {[%clk 0:01:06.4]}
29... Rxd7 {[%clk 0:00:30.1]} 30. Qc3 {[%clk 0:00:58.8]} 30... Qd8 {[%clk
0:00:27.4]} 31. Nf6+ {[%clk 0:00:57.6]} 31... Kh8 {[%clk 0:00:25.8]} 32. Nxd7
{[%clk 0:00:57.4]} 32... Qxd7 {[%clk 0:00:26.2]} 33. Qf6 {[%clk 0:00:57]} 33...
Kg8 {[%clk 0:00:20.7]} 34. Re7 {[%clk 0:00:55.1]} 34... Qd1+ {[%clk 0:00:19.9]}
35. Kg2 {[%clk 0:00:55.2]} 1-0

[Event "Early-Titled-Tuesday-Blitz-February-27-2024"]
[Site "Chess.com"]
[Date "2024.02.27"]
[Round "2"]
[White "MightyGMpretender"]
[Black "krucki03"]
[Result "1-0"]
[WhiteElo "2772"]
[BlackElo "2542"]
[TimeControl "180+1"]
[EndTime "8:16:33 PST"]
[Termination "MightyGMpretender won by resignation"]

1. Nf3 {[%clk 0:03:00.9]} 1... d5 {[%clk 0:02:57.9]} 2. e3 {[%clk 0:03:01.3]}
2... Nf6 {[%clk 0:02:53.7]} 3. c4 {[%clk 0:03:01.3]} 3... e6 {[%clk 0:02:51.5]}
4. b3 {[%clk 0:03:01.4]} 4... c5 {[%clk 0:02:51.1]} 5. Bb2 {[%clk 0:03:01.6]}
5... Nc6 {[%clk 0:02:51.1]} 6. cxd5 {[%clk 0:03:02]} 6... Nxd5 {[%clk 0:02:49]}
7. Bc4 {[%clk 0:02:56.1]} 7... Be7 {[%clk 0:02:46.9]} 8. Nc3 {[%clk 0:02:44.7]}
8... Nxc3 {[%clk 0:02:41.7]} 9. Bxc3 {[%clk 0:02:43.8]} 9... Bf6 {[%clk
0:02:42.3]} 10. Qc2 {[%clk 0:02:40.4]} 10... O-O {[%clk 0:02:35.9]} 11. Bb5
{[%clk 0:02:29.3]} 11... Nb4 {[%clk 0:02:34]} 12. Bxb4 {[%clk 0:02:15.2]} 12...
cxb4 {[%clk 0:02:25.5]} 13. d4 {[%clk 0:02:13.3]} 13... a6 {[%clk 0:02:25.6]}
14. Bd3 {[%clk 0:02:13]} 14... h6 {[%clk 0:02:26.2]} 15. O-O {[%clk 0:02:09.2]}
15... Bd7 {[%clk 0:02:25.7]} 16. Be4 {[%clk 0:02:05.7]} 16... Rc8 {[%clk
0:02:23.7]} 17. Qd2 {[%clk 0:02:04]} 17... Qb6 {[%clk 0:02:22.9]} 18. Rac1
{[%clk 0:02:04]} 18... a5 {[%clk 0:02:18.4]} 19. h3 {[%clk 0:01:57.1]} 19... Bb5
{[%clk 0:02:17.1]} 20. Bd3 {[%clk 0:01:54.2]} 20... Bc6 {[%clk 0:02:14.1]} 21.
Qe2 {[%clk 0:01:50]} 21... Rfd8 {[%clk 0:02:09.2]} 22. Nd2 {[%clk 0:01:48.7]}
22... Qa7 {[%clk 0:01:53.1]} 23. Be4 {[%clk 0:01:39.1]} 23... Bd5 {[%clk
0:01:44.7]} 24. Bxd5 {[%clk 0:01:38.6]} 24... exd5 {[%clk 0:01:45.6]} 25. Qb5
{[%clk 0:01:36.5]} 25... Qa6 {[%clk 0:01:41.4]} 26. Qxa6 {[%clk 0:01:20.7]}
26... bxa6 {[%clk 0:01:42.3]} 27. Rfd1 {[%clk 0:01:20.3]} 27... Be7 {[%clk
0:01:35.5]} 28. Kf1 {[%clk 0:01:18.6]} 28... Rc3 {[%clk 0:01:34.9]} 29. Nb1
{[%clk 0:01:18.5]} 29... Rcc8 {[%clk 0:01:32.1]} 30. Ke2 {[%clk 0:01:18.4]}
30... Kf8 {[%clk 0:01:31.8]} 31. Kd2 {[%clk 0:01:17.9]} 31... Ke8 {[%clk
0:01:32.3]} 32. Rxc8 {[%clk 0:01:17.8]} 32... Rxc8 {[%clk 0:01:33.2]} 33. Rc1
{[%clk 0:01:18.4]} 33... Rxc1 {[%clk 0:01:33.4]} 34. Kxc1 {[%clk 0:01:19.3]}
34... Kd7 {[%clk 0:01:34]} 35. Kc2 {[%clk 0:01:19]} 35... f5 {[%clk 0:01:29.5]}
36. Kd3 {[%clk 0:01:18.7]} 36... g5 {[%clk 0:01:29.1]} 37. Nd2 {[%clk
0:01:18.3]} 37... h5 {[%clk 0:01:26.9]} 38. Nf3 {[%clk 0:01:17.5]} 38... Bf6
{[%clk 0:01:24.8]} 39. Ne5+ {[%clk 0:01:13.6]} 39... Kd6 {[%clk 0:01:22]} 40.
Nf3 {[%clk 0:01:09.1]} 40... g4 {[%clk 0:01:20.6]} 41. Ng1 {[%clk 0:01:08.9]}
41... Kc6 {[%clk 0:01:07.5]} 42. Ne2 {[%clk 0:01:07.7]} 42... Bg5 {[%clk
0:01:06.2]} 43. Ng3 {[%clk 0:00:58]} 43... Bh4 {[%clk 0:00:59.5]} 44. Nxh5
{[%clk 0:00:58.2]} 44... Bxf2 {[%clk 0:00:58.7]} 45. Ng7 {[%clk 0:00:58.6]}
45... gxh3 {[%clk 0:00:43.9]} 46. gxh3 {[%clk 0:00:58.2]} 46... Kb5 {[%clk
0:00:38.4]} 47. Nxf5 {[%clk 0:00:57.5]} 47... a4 {[%clk 0:00:39.3]} 48. h4
{[%clk 0:00:54.5]} 1-0

[Event "Early-Titled-Tuesday-Blitz-February-27-2024"]
[Site "Chess.com"]
[Date "2024.02.27"]
[Round "2"]
[White "KacperKacprzak"]
[Black "atalz0"]
[Result "1-0"]
[WhiteElo "2705"]
[BlackElo "2383"]
[TimeControl "180+1"]
[EndTime "8:16:34 PST"]
[Termination "KacperKacprzak won by resignation"]

1. d4 {[%clk 0:03:00.9]} 1... Nf6 {[%clk 0:02:59.4]} 2. c4 {[%clk 0:03:00.8]}
2... e6 {[%clk 0:02:55.6]} 3. Nf3 {[%clk 0:02:58.9]} 3... d5 {[%clk 0:02:53]} 4.
Nc3 {[%clk 0:02:59.2]} 4... dxc4 {[%clk 0:02:52.9]} 5. Qa4+ {[%clk 0:02:50]}
5... Nbd7 {[%clk 0:02:47.5]} 6. e4 {[%clk 0:02:45.3]} 6... a6 {[%clk 0:02:35.8]}
7. Bxc4 {[%clk 0:02:30.8]} 7... Rb8 {[%clk 0:02:20.9]} 8. Bd3 {[%clk 0:02:27.5]}
8... b5 {[%clk 0:02:20.8]} 9. Qc2 {[%clk 0:02:26.7]} 9... c5 {[%clk 0:02:19.1]}
10. d5 {[%clk 0:02:25.7]} 10... exd5 {[%clk 0:02:09.9]} 11. exd5 {[%clk
0:02:17.2]} 11... Bd6 {[%clk 0:02:02]} 12. O-O {[%clk 0:02:16.9]} 12... O-O
{[%clk 0:02:00.7]} 13. Bg5 {[%clk 0:02:15.3]} 13... h6 {[%clk 0:01:58.6]} 14.
Bh4 {[%clk 0:02:13.6]} 14... Qc7 {[%clk 0:01:47]} 15. a4 {[%clk 0:02:01.5]}
15... b4 {[%clk 0:01:36.5]} 16. Ne4 {[%clk 0:02:01.8]} 16... Nxe4 {[%clk
0:01:34.7]} 17. Bxe4 {[%clk 0:02:02.7]} 17... Ne5 {[%clk 0:01:30.3]} 18. Bg3
{[%clk 0:01:54.4]} 18... Nxf3+ {[%clk 0:00:41.7]} 19. Bxf3 {[%clk 0:01:55.3]}
19... b3 {[%clk 0:00:33.5]} 20. Qc3 {[%clk 0:01:53.3]} 20... Bf5 {[%clk
0:00:28.6]} 21. Rac1 {[%clk 0:01:48.8]} 21... Rfc8 {[%clk 0:00:26.8]} 22. Rfe1
{[%clk 0:01:48]} 22... Bxg3 {[%clk 0:00:25.1]} 23. hxg3 {[%clk 0:01:48.9]} 23...
Qd6 {[%clk 0:00:20.5]} 24. Re5 {[%clk 0:01:42.9]} 24... Bc2 {[%clk 0:00:19.4]}
25. Rce1 {[%clk 0:01:40.6]} 25... c4 {[%clk 0:00:18.2]} 26. Bh5 {[%clk
0:01:29.8]} 26... g6 {[%clk 0:00:15]} 27. Bg4 {[%clk 0:01:26.5]} 27... Rd8
{[%clk 0:00:14.7]} 28. Qxc4 {[%clk 0:00:51]} 28... Rb4 {[%clk 0:00:13.7]} 29.
Re8+ {[%clk 0:00:43.1]} 29... Rxe8 {[%clk 0:00:10.7]} 30. Rxe8+ {[%clk 0:00:44]}
30... Kh7 {[%clk 0:00:10.6]} 31. Qc3 {[%clk 0:00:43.3]} 31... g5 {[%clk
0:00:03.5]} 1-0

[Event "Early-Titled-Tuesday-Blitz-February-27-2024"]
[Site "Chess.com"]
[Date "2024.02.27"]
[Round "2"]
[White "salomez"]
[Black "komogro"]
[Result "1-0"]
[WhiteElo "2323"]
[BlackElo "2521"]
[TimeControl "180+1"]
[EndTime "8:16:34 PST"]
[Termination "salomez won on time"]

1. e4 {[%clk 0:02:57]} 1... b6 {[%clk 0:02:58.1]} 2. d4 {[%clk 0:02:56.4]} 2...
Bb7 {[%clk 0:02:58.6]} 3. Nd2 {[%clk 0:02:55.1]} 3... e6 {[%clk 0:02:58.6]} 4.
c3 {[%clk 0:02:55.1]} 4... c5 {[%clk 0:02:57.4]} 5. Ngf3 {[%clk 0:02:55.3]} 5...
d6 {[%clk 0:02:56.1]} 6. Bd3 {[%clk 0:02:54.3]} 6... a6 {[%clk 0:02:56]} 7. O-O
{[%clk 0:02:54.5]} 7... Nf6 {[%clk 0:02:55.5]} 8. Re1 {[%clk 0:02:54.8]} 8...
Be7 {[%clk 0:02:55.4]} 9. Qe2 {[%clk 0:02:55]} 9... O-O {[%clk 0:02:54.7]} 10.
e5 {[%clk 0:02:52.3]} 10... Nd5 {[%clk 0:02:50.3]} 11. Ne4 {[%clk 0:02:51.5]}
11... cxd4 {[%clk 0:02:41.1]} 12. cxd4 {[%clk 0:02:51.2]} 12... Nc6 {[%clk
0:02:35.4]} 13. Bd2 {[%clk 0:02:45.5]} 13... h6 {[%clk 0:02:33.2]} 14. Rac1
{[%clk 0:02:38.8]} 14... dxe5 {[%clk 0:02:11.2]} 15. dxe5 {[%clk 0:02:38.5]}
15... Ndb4 {[%clk 0:02:10.1]} 16. Bb1 {[%clk 0:02:37.4]} 16... a5 {[%clk
0:01:53.3]} 17. Red1 {[%clk 0:02:35.4]} 17... Ba6 {[%clk 0:01:52]} 18. Qe3
{[%clk 0:02:09.5]} 18... Qb8 {[%clk 0:01:46.8]} 19. Nd6 {[%clk 0:02:07.7]} 19...
Nxe5 {[%clk 0:01:33.7]} 20. Nxe5 {[%clk 0:01:51.2]} 20... Bxd6 {[%clk
0:01:32.6]} 21. Nd7 {[%clk 0:01:50.8]} 21... Qa7 {[%clk 0:00:06]} 22. Nxf8
{[%clk 0:01:46.1]} 22... Bxf8 {[%clk 0:00:06.9]} 23. Qe4 {[%clk 0:01:43.5]}
23... g6 {[%clk 0:00:07.3]} 24. Bc3 {[%clk 0:01:29.3]} 24... Nd5 {[%clk
0:00:07.6]} 25. Rxd5 {[%clk 0:01:21.9]} 25... exd5 {[%clk 0:00:07.3]} 26. Qe5
{[%clk 0:01:08.1]} 26... f6 {[%clk 0:00:01.4]} 27. Qxf6 {[%clk 0:01:04.3]} 27...
Qg7 {[%clk 0:00:02.1]} 28. Qc6 {[%clk 0:00:54.2]} 28... Qf7 {[%clk 0:00:02.6]}
29. Qxa8 {[%clk 0:00:51.9]} 1-0

[Event "Early-Titled-Tuesday-Blitz-February-27-2024"]
[Site "Chess.com"]
[Date "2024.02.27"]
[Round "2"]
[White "NowInChess"]
[Black "Hananmo"]
[Result "0-1"]
[WhiteElo "2276"]
[BlackElo "2522"]
[TimeControl "180+1"]
[EndTime "8:16:34 PST"]
[Termination "Hananmo won on time"]

1. e4 {[%clk 0:03:00.9]} 1... c5 {[%clk 0:02:59.2]} 2. d3 {[%clk 0:03:01]} 2...
e6 {[%clk 0:02:59.8]} 3. g3 {[%clk 0:03:01.5]} 3... a6 {[%clk 0:03:00.1]} 4. Bg2
{[%clk 0:03:01.7]} 4... b5 {[%clk 0:03:00.2]} 5. f4 {[%clk 0:03:02]} 5... Bb7
{[%clk 0:03:00.2]} 6. Nf3 {[%clk 0:03:02.3]} 6... d6 {[%clk 0:02:57.2]} 7. O-O
{[%clk 0:03:02]} 7... Be7 {[%clk 0:02:57.2]} 8. a4 {[%clk 0:03:01.6]} 8... Nf6
{[%clk 0:02:56.5]} 9. axb5 {[%clk 0:03:00.3]} 9... axb5 {[%clk 0:02:56.5]} 10.
Rxa8 {[%clk 0:03:01.1]} 10... Bxa8 {[%clk 0:02:56.8]} 11. Nc3 {[%clk 0:02:59.6]}
11... b4 {[%clk 0:02:51.2]} 12. Ne2 {[%clk 0:02:57.6]} 12... O-O {[%clk
0:02:51.5]} 13. h3 {[%clk 0:02:57.3]} 13... Qc7 {[%clk 0:02:44]} 14. g4 {[%clk
0:02:56.3]} 14... c4 {[%clk 0:02:43.5]} 15. Be3 {[%clk 0:02:41]} 15... b3 {[%clk
0:02:35.6]} 16. Ng3 {[%clk 0:02:26.1]} 16... Rc8 {[%clk 0:02:13.1]} 17. g5
{[%clk 0:02:18.7]} 17... Nfd7 {[%clk 0:02:08.3]} 18. cxb3 {[%clk 0:02:16.9]}
18... cxd3 {[%clk 0:02:03.9]} 19. Qxd3 {[%clk 0:02:17.8]} 19... Nc5 {[%clk
0:02:03.1]} 20. Bxc5 {[%clk 0:01:59]} 20... Qxc5+ {[%clk 0:02:02.7]} 21. Kh1
{[%clk 0:01:59.3]} 21... Nc6 {[%clk 0:01:55.5]} 22. Qa6 {[%clk 0:01:45.7]} 22...
Nb4 {[%clk 0:01:53.8]} 23. Qe2 {[%clk 0:01:36.4]} 23... Bb7 {[%clk 0:01:49.6]}
24. f5 {[%clk 0:01:14.1]} 24... Ba6 {[%clk 0:01:40.6]} 25. Qf2 {[%clk
0:01:07.5]} 25... Bxf1 {[%clk 0:01:38.7]} 26. Qxf1 {[%clk 0:01:08.1]} 26... Qc1
{[%clk 0:01:35.8]} 27. fxe6 {[%clk 0:00:57.5]} 27... fxe6 {[%clk 0:01:32]} 28.
Nd4 {[%clk 0:00:47.1]} 28... e5 {[%clk 0:01:16.3]} 29. Ndf5 {[%clk 0:00:45.3]}
29... Bf8 {[%clk 0:01:10.3]} 30. h4 {[%clk 0:00:37.7]} 30... g6 {[%clk
0:01:08.6]} 31. Nh6+ {[%clk 0:00:23.4]} 31... Bxh6 {[%clk 0:01:07.8]} 32. gxh6
{[%clk 0:00:24.3]} 32... Qxh6 {[%clk 0:00:55.3]} 33. Qb5 {[%clk 0:00:05.6]}
33... Qxh4+ {[%clk 0:00:54]} 34. Kg1 {[%clk 0:00:04]} 34... Qxg3 {[%clk
0:00:54.3]} 35. Qxb4 {[%clk 0:00:02.1]} 35... Rc1+ {[%clk 0:00:53.6]} 0-1